fUST/lending_fUST_20240824
["ID","MTS","AMOUNT","RATE_DAILY","PERIOD"]
[335769192,1724483455814,-2349.32,0.00013972,2]
[335769193,1724483455824,-500.0,0.00013972,2]
[335769194,1724483455833,-151.0,0.00013972,2]
[335769195,1724483455845,-294.894676,0.00013972,2]
[335769196,1724483455865,-500.97004959,0.00013972,2]
[335769197,1724483455875,-500.0,0.00013972,2]
[335769198,1724483455885,-560.46,0.00013972,2]
[335769199,1724483455894,-500.0,0.00013972,2]
[335769200,1724483455904,-589.79,0.00013972,2]
[335769201,1724483455913,-500.0,0.00013972,2]
[335769202,1724483455923,-602.08,0.00013972,2]
[335769203,1724483455932,-500.0,0.00013972,2]
[335769204,1724483455941,-900.28,0.00013972,2]
[335769205,1724483455951,-500.0,0.00013972,2]
[335769206,1724483455960,-1303.430363,0.00013972,2]
[335769207,1724483455969,-1303.430363,0.00013972,2]
[335769208,1724483455978,-596.75,0.00013972,2]
[335769209,1724483455987,-500.0,0.00013972,2]
[335769210,1724483455997,-2195.88,0.00013972,2]
[335769211,1724483456006,-500.0,0.00013972,2]
[335769212,1724483456016,-1303.430363,0.00013972,2]
[335769213,1724483456025,-1303.430363,0.00013972,2]
[335769214,1724483456034,-666.0,0.00013972,2]
[335769215,1724483456043,-778.89,0.00013972,2]
[335769216,1724483456053,-500.0,0.00013972,2]
[335769217,1724483456063,-500.0,0.00013972,2]
[335769218,1724483456072,-1060.76,0.00013972,2]
[335769219,1724483456081,-2016.11,0.00013972,2]
[335769220,1724483456090,-500.0,0.00013972,2]
[335769221,1724483456100,-968.66,0.00013972,2]
[335769222,1724483456110,-500.0,0.00013972,2]
[335769223,1724483456119,-500.0,0.00013972,2]
[335769224,1724483456129,-500.0,0.00013972,2]
[335769225,1724483456139,-500.0,0.00013972,2]
[335769226,1724483456148,-532.75,0.00013972,2]
[335769227,1724483456157,-853.32,0.00013972,2]
[335769228,1724483456167,-805.95,0.00013972,2]
[335769229,1724483456178,-967.87,0.00013972,2]
[335769230,1724483456188,-500.0,0.00013972,2]
[335769231,1724483456198,-500.0,0.00013972,2]
[335769232,1724483456209,-500.0,0.00013972,2]
[335769233,1724483456219,-500.0,0.00013972,2]
[335769234,1724483456230,-778.084569,0.00013972,2]
[335769235,1724483456242,-500.0,0.00013972,2]
[335769236,1724483456253,-778.084569,0.00013972,2]
[335769237,1724483456263,-1276.52,0.00013972,2]
[335769238,1724483456273,-3592.176796,0.00013972,2]
[335769239,1724483456283,-3592.176796,0.00013972,2]
[335769240,1724483456292,-500.0,0.00013972,2]
[335769241,1724483456302,-778.084569,0.00013972,2]
[335769242,1724483456312,-778.084569,0.00013972,2]
[335769243,1724483456321,-500.0,0.00013972,2]
[335769244,1724483456331,-3592.176796,0.00013972,2]
[335769245,1724483456340,-3592.176796,0.00013972,2]
[335769246,1724483456351,-500.0,0.00013972,2]
[335769247,1724483456360,-500.0,0.00013972,2]
[335769248,1724483456371,-500.0,0.00013972,2]
[335769249,1724483456380,-412.325623,0.00013972,2]
[335769250,1724483456389,-412.325623,0.00013972,2]
[335769251,1724483456399,-500.0,0.00013972,2]
[335769252,1724483456409,-501.46148041,0.00013972,2]
[335769253,1724483456418,-1023.19,0.00013972,2]
[335769254,1724483456428,-151.338408,0.00013972,2]
[335769255,1724483456438,-500.0,0.00013972,2]
[335769256,1724483456449,-500.0,0.00013972,2]
[335769257,1724483456460,-412.325623,0.00013972,2]
[335769258,1724483456469,-412.325623,0.00013972,2]
[335769259,1724483456478,-268.195579,0.00013972,2]
[335769260,1724483456624,-268.195579,0.00013972,2]
[335769261,1724483456633,-1525.1,0.00013972,2]
[335769262,1724483456643,-500.0,0.00013972,2]
[335769263,1724483456653,-197.123887,0.00013972,2]
[335769264,1724483456662,-500.0,0.00013972,2]
[335769265,1724483456671,-197.123887,0.00013972,2]
[335769266,1724483456681,-500.0,0.00013972,2]
[335769267,1724483456690,-859.2,0.00013972,2]
[335769268,1724483456699,-197.123887,0.00013972,2]
[335769269,1724483456709,-197.123887,0.00013972,2]
[335769270,1724483456718,-500.0,0.00013972,2]
[335769271,1724483456728,-549.47,0.00013972,2]
[335769272,1724483456740,-666.56,0.00013972,2]
[335769273,1724483456750,-1264.36,0.00013972,2]
[335769274,1724483456761,-268.195579,0.00013972,2]
[335769275,1724483456770,-268.195579,0.00013972,2]
[335769276,1724483456779,-1800.54,0.00013972,2]
[335769277,1724483456788,-1117.25,0.00013972,2]
[335769278,1724483456798,-500.0,0.00013972,2]
[335769279,1724483456807,-178.124472,0.00013972,2]
[335769280,1724483456816,-178.124472,0.00013972,2]
[335769281,1724483456826,-955.53,0.00013972,2]
[335769282,1724483456836,-2185.53,0.00013972,2]
[335769283,1724483456852,-500.0,0.00013972,2]
[335769284,1724483456862,-3284.094567,0.00013972,2]
[335769285,1724483456872,-3284.094567,0.00013972,2]
[335769286,1724483456882,-824.18,0.00013972,2]
[335769287,1724483456891,-178.124472,0.00013972,2]
[335769288,1724483456900,-500.0,0.00013972,2]
[335769289,1724483456910,-178.124472,0.00013972,2]
[335769290,1724483456921,-500.0,0.00013972,2]
[335769291,1724483456930,-500.0,0.00013972,2]
[335769292,1724483456939,-500.0,0.00013972,2]
[335769293,1724483456949,-198.403384,0.00013972,2]
[335769294,1724483456958,-500.0,0.00013972,2]
[335769295,1724483456968,-198.403384,0.00013972,2]
[335769296,1724483456977,-3284.094567,0.00013972,2]
[335769297,1724483456986,-1702.13431768,0.00013972,2]
[335769298,1724483457703,-1581.96024932,0.00013972,2]
[335769299,1724483457713,-198.403384,0.00013972,2]
[335769300,1724483457722,-574.69944032,0.00013972,2]
[335769301,1724483457733,-198.403384,0.00013972,2]
[335769302,1724483457745,-1425.95,0.00013972,2]
[335769303,1724483457754,-198.403384,0.00013972,2]
[335769304,1724483457764,-198.403384,0.00013972,2]
[335769305,1724483457773,-500.0,0.00013972,2]
[335769306,1724483457783,-1178.83,0.00013972,2]
[335769307,1724483457792,-500.0,0.00013972,2]
[335769308,1724483457801,-500.0,0.00013972,2]
[335769309,1724483457810,-834.48,0.00013972,2]
[335769310,1724483457822,-556.26,0.00013972,2]
[335769311,1724483457832,-500.0,0.00013972,2]
[335769312,1724483457846,-500.0,0.00013972,2]
[335769313,1724483457858,-1006.69,0.00013972,2]
[335769314,1724483457869,-500.0,0.00013972,2]
[335769315,1724483457878,-500.0,0.00013972,2]
[335769316,1724483457888,-1850.515096,0.00013972,2]
[335769317,1724483457897,-1850.515096,0.00013972,2]
[335769318,1724483457906,-1850.515096,0.00013972,2]
[335769319,1724483457916,-762.56,0.00013972,2]
[335769320,1724483457928,-500.0,0.00013972,2]
[335769321,1724483457939,-983.06,0.00013972,2]
[335769322,1724483457950,-827.4897314,0.00013972,2]
[335769323,1724483458181,-1362.0,0.00013698,2]
[335769324,1724483458191,-202.319256,0.00013699,2]
[335769325,1724483458200,-3000.0,0.00013699,2]
[335769326,1724483458210,-202.319256,0.00013971,2]
[335769327,1724483458220,-1023.0253646,0.00013972,2]
[335769328,1724483458230,-1850.515096,0.00013972,2]
[335769329,1724483458239,-1850.515096,0.00013972,2]
[335769330,1724483458249,-151.0,0.00013972,2]
[335769331,1724483458258,-151.0,0.00013972,2]
[335769332,1724483458268,-151.0,0.00013972,2]
[335769333,1724483458277,-500.0,0.00013972,2]
[335769334,1724483458286,-316.24143331,0.00013972,2]
[335769335,1724483458296,-500.0,0.00013972,2]
[335769336,1724483458305,-500.0,0.00013972,2]
[335769337,1724483458315,-787.22,0.00013972,2]
[335769338,1724483458324,-500.0,0.00013972,2]
[335769339,1724483458333,-491.82331326,0.00013972,2]
[335769340,1724483458342,-1321.08,0.00013972,2]
[335769341,1724483458352,-500.0,0.00013972,2]
[335769342,1724483458362,-601.53,0.00013972,2]
[335769343,1724483458372,-1494.88,0.00013972,2]
[335769344,1724483458381,-500.0,0.00013972,2]
[335769345,1724483458390,-500.0,0.00013972,2]
[335769346,1724483458400,-500.0,0.00013972,2]
[335769347,1724483458409,-999.53,0.00013972,2]
[335769348,1724483458418,-500.0,0.00013972,2]
[335769349,1724483458428,-663.48,0.00013972,2]
[335769350,1724483458438,-583.33,0.00013972,2]
[335769351,1724483458448,-1254.01,0.00013972,2]
[335769352,1724483458457,-500.0,0.00013972,2]
[335769353,1724483458467,-500.0,0.00013972,2]
[335769354,1724483458476,-1114.9,0.00013972,2]
[335769355,1724483458485,-500.0,0.00013972,2]
[335769356,1724483458494,-500.0,0.00013972,2]
[335769357,1724483458504,-500.0,0.00013972,2]
[335769358,1724483458514,-500.0,0.00013972,2]
[335769359,1724483458523,-1036.11,0.00013972,2]
[335769360,1724483458533,-566.06,0.00013972,2]
[335769361,1724483458542,-590.86,0.00013972,2]
[335769362,1724483458551,-606.27,0.00013972,2]
[335769363,1724483458561,-523.95976346,0.00013972,2]
[335769364,1724483458570,-865.98,0.00013972,2]
[335769365,1724483458579,-3133.28,0.00013972,2]
[335769366,1724483458589,-500.0,0.00013972,2]
[335769367,1724483458598,-500.0,0.00013972,2]
[335769368,1724483458608,-500.0,0.00013972,2]
[335769369,1724483458617,-500.0,0.00013972,2]
[335769370,1724483458627,-500.0,0.00013972,2]
[335769371,1724483458798,-500.0,0.00013972,2]
[335769372,1724483458809,-1636.85,0.00013972,2]
[335769373,1724483458820,-500.0,0.00013972,2]
[335769374,1724483458831,-500.0,0.00013972,2]
[335769375,1724483458844,-500.0,0.00013972,2]
[335769376,1724483458859,-1593.9,0.00013972,2]
[335769377,1724483458872,-896.1,0.00013972,2]
[335769378,1724483458883,-500.0,0.00013972,2]
[335769379,1724483458893,-857.88,0.00013972,2]
[335769380,1724483458901,-500.0,0.00013972,2]
[335769381,1724483458910,-760.06,0.00013972,2]
[335769382,1724483458921,-844.25,0.00013972,2]
[335769383,1724483458931,-500.0,0.00013972,2]
[335769384,1724483458943,-592.07,0.00013972,2]
[335769385,1724483458955,-883.29,0.00013972,2]
[335769386,1724483458964,-500.0,0.00013972,2]
[335769387,1724483458974,-712.39,0.00013972,2]
[335769388,1724483458983,-546.65,0.00013972,2]
[335769389,1724483458993,-736.42,0.00013972,2]
[335769390,1724483459002,-500.0,0.00013972,2]
[335769391,1724483459011,-500.0,0.00013972,2]
[335769392,1724483459021,-500.0,0.00013972,2]
[335769393,1724483459032,-500.0,0.00013972,2]
[335769394,1724483459041,-500.25966525,0.00013972,2]
[335769395,1724483459051,-500.0,0.00013972,2]
[335769396,1724483459061,-500.0,0.00013972,2]
[335769397,1724483459071,-500.0,0.00013972,2]
[335769398,1724483459080,-755.69,0.00013972,2]
[335769399,1724483459090,-500.0,0.00013972,2]
[335769400,1724483459099,-679.36,0.00013972,2]
[335769401,1724483459110,-500.0,0.00013972,2]
[335769402,1724483459120,-500.0,0.00013972,2]
[335769403,1724483459131,-500.0,0.00013972,2]
[335769404,1724483459141,-500.0,0.00013972,2]
[335769405,1724483459151,-500.0,0.00013972,2]
[335769406,1724483459162,-1147.49,0.00013972,2]
[335769407,1724483459172,-596.58,0.00013972,2]
[335769408,1724483459181,-417.61929196,0.00013972,2]
[335769409,1724483459191,-525.97,0.00013972,2]
[335769410,1724483459201,-563.79847369,0.00013972,2]
[335769411,1724483459211,-500.0,0.00013972,2]
[335769412,1724483459220,-500.0,0.00013972,2]
[335769413,1724483459231,-500.0,0.00013972,2]
[335769414,1724483459242,-684.22,0.00013972,2]
[335769415,1724483459251,-547.69074638,0.00013972,2]
[335769416,1724483459261,-500.0,0.00013972,2]
[335769417,1724483459270,-500.0,0.00013972,2]
[335769418,1724483459280,-1275.74,0.00013972,2]
[335769419,1724483459289,-500.0,0.00013972,2]
[335769420,1724483459299,-500.0,0.00013972,2]
[335769421,1724483459308,-500.0,0.00013972,2]
[335769422,1724483459318,-500.0,0.00013972,2]
[335769423,1724483459328,-500.0,0.00013972,2]
[335769424,1724483459337,-500.0,0.00013972,2]
[335769425,1724483459348,-500.0,0.00013972,2]
[335769426,1724483459359,-590.96582078,0.00013972,2]
[335769427,1724483459369,-500.0,0.00013972,2]
[335769428,1724483459378,-500.0,0.00013972,2]
[335769429,1724483459387,-500.0,0.00013972,2]
[335769430,1724483459397,-500.0,0.00013972,2]
[335769431,1724483459406,-500.0,0.00013972,2]
[335769432,1724483459416,-500.0,0.00013972,2]
[335769433,1724483459426,-500.0,0.00013972,2]
[335769434,1724483459435,-500.0,0.00013972,2]
[335769435,1724483459445,-500.0,0.00013972,2]
[335769436,1724483459456,-1128.38,0.00013972,2]
[335769437,1724483459465,-500.0,0.00013972,2]
[335769438,1724483459475,-500.0,0.00013972,2]
[335769439,1724483459484,-519.05476155,0.00013972,2]
[335769440,1724483459493,-500.0,0.00013972,2]
[335769441,1724483459503,-151.0,0.00013972,2]
[335769442,1724483459514,-151.0,0.00013972,2]
[335769443,1724483459526,-866.76,0.00013972,2]
[335769444,1724483459536,-151.0,0.00013972,2]
[335769445,1724483459547,-500.0,0.00013972,2]
[335769446,1724483459557,-500.0,0.00013972,2]
[335769447,1724483459568,-151.0,0.00013972,2]
[335769448,1724483459577,-500.0,0.00013972,2]
[335769449,1724483459587,-725.65,0.00013972,2]
[335769450,1724483459596,-151.0,0.00013972,2]
[335769451,1724483459605,-500.0,0.00013972,2]
[335769452,1724483459614,-1546.09,0.00013972,2]
[335769453,1724483459623,-151.0,0.00013972,2]
[335769454,1724483459632,-331.08228858,0.00013972,2]
[335769455,1724483459642,-1223.32,0.00013972,2]
[335769456,1724483459651,-748.81,0.00013972,2]
[335769457,1724483459661,-1286.82,0.00013972,2]
[335769458,1724483459672,-500.0,0.00013972,2]
[335769459,1724483459681,-510.28937839,0.00013972,2]
[335769460,1724483459691,-2527.32,0.00013972,2]
[335769461,1724483459701,-500.886722,0.00013972,2]
[335769462,1724483459710,-894.63,0.00013972,2]
[335769463,1724483459719,-1020.47,0.00013972,2]
[335769464,1724483459729,-500.0,0.00013972,2]
[335769465,1724483459738,-542.26,0.00013972,2]
[335769466,1724483459748,-500.0,0.00013972,2]
[335769467,1724483459757,-500.0,0.00013972,2]
[335769468,1724483459767,-500.0,0.00013972,2]
[335769469,1724483459776,-591.76,0.00013972,2]
[335769470,1724483459787,-580.13,0.00013972,2]
[335769471,1724483459799,-500.0,0.00013972,2]
[335769472,1724483459809,-500.0,0.00013972,2]
[335769473,1724483459819,-500.0,0.00013972,2]
[335769474,1724483459831,-1128.08,0.00013972,2]
[335769475,1724483459843,-503.18446818,0.00013972,2]
[335769476,1724483459854,-1639.98,0.00013972,2]
[335769477,1724483459865,-535.188244,0.00013972,2]
[335769478,1724483459876,-535.188244,0.00013972,2]
[335769479,1724483459888,-500.09,0.00013972,2]
[335769480,1724483459899,-535.188244,0.00013972,2]
[335769481,1724483459911,-500.0,0.00013972,2]
[335769482,1724483459921,-500.0,0.00013972,2]
[335769483,1724483459933,-500.0,0.00013972,2]
[335769484,1724483459944,-500.0,0.00013972,2]
[335769485,1724483459955,-732.18,0.00013972,2]
[335769486,1724483459966,-535.188244,0.00013972,2]
[335769487,1724483459975,-535.188244,0.00013972,2]
[335769488,1724483459985,-500.0,0.00013972,2]
[335769489,1724483459994,-778.16,0.00013972,2]
[335769490,1724483460004,-535.188244,0.00013972,2]
[335769491,1724483460013,-604.64,0.00013972,2]
[335769492,1724483460023,-500.0,0.00013972,2]
[335769493,1724483460033,-1288.2,0.00013972,2]
[335769494,1724483460043,-1238.19,0.00013972,2]
[335769495,1724483460053,-650.059302,0.00013972,2]
[335769496,1724483460062,-650.059302,0.00013972,2]
[335769497,1724483460073,-650.059302,0.00013972,2]
[335769498,1724483460082,-694.55,0.00013972,2]
[335769499,1724483460092,-500.0,0.00013972,2]
[335769500,1724483460102,-500.0,0.00013972,2]
[335769501,1724483460111,-714.32,0.00013972,2]
[335769502,1724483460121,-500.0,0.00013972,2]
[335769503,1724483460132,-2003.38,0.00013972,2]
[335769504,1724483460142,-650.059302,0.00013972,2]
[335769505,1724483460151,-650.059302,0.00013972,2]
[335769506,1724483460160,-1930.14,0.00013972,2]
[335769507,1724483460170,-650.059302,0.00013972,2]
[335769508,1724483460180,-587.05,0.00013972,2]
[335769509,1724483460190,-2161.33,0.00013972,2]
[335769510,1724483460199,-2145.31,0.00013972,2]
[335769511,1724483460210,-500.0,0.00013972,2]
[335769512,1724483460220,-500.0,0.00013972,2]
[335769513,1724483460231,-1974.410121,0.00013972,2]
[335769514,1724483460241,-500.0,0.00013972,2]
[335769515,1724483460250,-263.14500142,0.00013972,2]
[335769516,1724483460260,-760.72,0.00013972,2]
[335769517,1724483460269,-1974.410121,0.00013972,2]
[335769518,1724483460279,-500.0,0.00013972,2]
[335769519,1724483460289,-1974.410121,0.00013972,2]
[335769520,1724483460298,-1050.21,0.00013972,2]
[335769521,1724483460308,-1267.06,0.00013972,2]
[335769522,1724483460317,-500.0,0.00013972,2]
[335769523,1724483460327,-1974.410121,0.00013972,2]
[335769524,1724483460337,-1352.38,0.00013972,2]
[335769525,1724483460346,-500.0,0.00013972,2]
[335769526,1724483460356,-1974.410121,0.00013972,2]
[335769527,1724483460368,-13875.09,0.00013972,2]
[335769528,1724483460378,-1974.410121,0.00013972,2]
[335769529,1724483460387,-500.0,0.00013972,2]
[335769530,1724483460397,-500.0,0.00013972,2]
[335769531,1724483460406,-696.74,0.00013972,2]
[335769532,1724483460415,-662.57,0.00013972,2]
[335769533,1724483460426,-597.85,0.00013972,2]
[335769534,1724483460437,-500.0,0.00013972,2]
[335769535,1724483460447,-987.1,0.00013972,2]
[335769536,1724483460456,-500.0,0.00013972,2]
[335769537,1724483460466,-1000.0,0.00013972,2]
[335769538,1724483460475,-6982.26,0.00013972,2]
[335769539,1724483460485,-566.86701025,0.00013972,2]
[335769540,1724483460495,-725.86,0.00013972,2]
[335769541,1724483460504,-500.0,0.00013972,2]
[335769542,1724483460514,-561.71,0.00013972,2]
[335769543,1724483460523,-151.0,0.00013972,2]
[335769544,1724483460532,-1384.34,0.00013972,2]
[335769545,1724483460541,-151.0,0.00013972,2]
[335769546,1724483460551,-151.398704,0.00013972,2]
[335769547,1724483460561,-500.0,0.00013972,2]
[335769548,1724483460570,-151.0,0.00013972,2]
[335769549,1724483460579,-151.0,0.00013972,2]
[335769550,1724483460588,-151.0,0.00013972,2]
[335769551,1724483460598,-500.0,0.00013972,2]
[335769552,1724483460608,-500.0,0.00013972,2]
[335769553,1724483460618,-1303.58,0.00013972,2]
[335769554,1724483460627,-1258.65,0.00013972,2]
[335769555,1724483460637,-500.0,0.00013972,2]
[335769556,1724483460646,-1282.32,0.00013972,2]
[335769557,1724483460656,-500.61120877,0.00013972,2]
[335769558,1724483460665,-500.0,0.00013972,2]
[335769559,1724483460674,-500.0,0.00013972,2]
[335769560,1724483460684,-603.79,0.00013972,2]
[335769561,1724483460693,-500.0,0.00013972,2]
[335769562,1724483460702,-500.0,0.00013972,2]
[335769563,1724483460712,-6426.7,0.00013972,2]
[335769564,1724483460721,-500.0,0.00013972,2]
[335769565,1724483460730,-500.0,0.00013972,2]
[335769566,1724483460739,-615.94,0.00013972,2]
[335769567,1724483460748,-1296.73,0.00013972,2]
[335769568,1724483460758,-506.58545164,0.00013972,2]
[335769569,1724483460768,-500.0,0.00013972,2]
[335769570,1724483460778,-500.0,0.00013972,2]
[335769571,1724483460787,-862.99,0.00013972,2]
[335769572,1724483460796,-3858.99,0.00013972,2]
[335769573,1724483460806,-2368.24,0.00013972,2]
[335769574,1724483460815,-500.0,0.00013972,2]
[335769575,1724483460825,-704.87,0.00013972,2]
[335769576,1724483460834,-779.54,0.00013972,2]
[335769577,1724483460848,-3677.278715,0.00013972,2]
[335769578,1724483460858,-500.0,0.00013972,2]
[335769579,1724483460868,-3677.278715,0.00013972,2]
[335769580,1724483460877,-3677.278715,0.00013972,2]
[335769581,1724483460887,-1555.53,0.00013972,2]
[335769582,1724483460897,-500.0,0.00013972,2]
[335769583,1724483460906,-500.0,0.00013972,2]
[335769584,1724483460918,-3677.278715,0.00013972,2]
[335769585,1724483460932,-2226.83,0.00013972,2]
[335769586,1724483460944,-3677.278715,0.00013972,2]
[335769587,1724483460954,-500.0,0.00013972,2]
[335769588,1724483460965,-3677.278715,0.00013972,2]
[335769589,1724483460975,-1041.69,0.00013972,2]
[335769590,1724483460984,-3856.7,0.00013972,2]
[335769591,1724483460994,-151.0,0.00013972,2]
[335769592,1724483461003,-2356.85,0.00013972,2]
[335769593,1724483461013,-500.0,0.00013972,2]
[335769594,1724483461022,-151.0,0.00013972,2]
[335769595,1724483461032,-151.0,0.00013972,2]
[335769596,1724483461041,-500.0,0.00013972,2]
[335769597,1724483461051,-500.0,0.00013972,2]
[335769598,1724483461060,-500.0,0.00013972,2]
[335769599,1724483461070,-500.0,0.00013972,2]
[335769600,1724483461079,-500.0,0.00013972,2]
[335769601,1724483461089,-1084.68,0.00013972,2]
[335769602,1724483461099,-2614.53,0.00013972,2]
[335769603,1724483461109,-1705.15,0.00013972,2]
[335769604,1724483461122,-500.0,0.00013972,2]
[335769605,1724483461132,-3586.02,0.00013972,2]
[335769606,1724483461142,-5223.85,0.00013972,2]
[335769607,1724483461152,-2192.71,0.00013972,2]
[335769608,1724483461162,-1900.89,0.00013972,2]
[335769609,1724483461172,-500.0,0.00013972,2]
[335769610,1724483461182,-500.0,0.00013972,2]
[335769611,1724483461192,-836.64,0.00013972,2]
[335769612,1724483461334,-1037.02,0.00013972,2]
[335769613,1724483461344,-500.0,0.00013972,2]
[335769614,1724483461353,-500.0,0.00013972,2]
[335769615,1724483461362,-500.0,0.00013972,2]
[335769616,1724483461371,-960.16,0.00013972,2]
[335769617,1724483461381,-20920.35,0.00013972,2]
[335769618,1724483461390,-459.53187077,0.00013972,2]
[335769619,1724483461400,-500.0,0.00013972,2]
[335769620,1724483461410,-514.21811915,0.00013972,2]
[335769621,1724483461419,-500.0,0.00013972,2]
[335769622,1724483461429,-2186.95,0.00013972,2]
[335769623,1724483461440,-500.0,0.00013972,2]
[335769624,1724483461449,-830.03,0.00013972,2]
[335769625,1724483461458,-694.33,0.00013972,2]
[335769626,1724483461468,-500.0,0.00013972,2]
[335769627,1724483461477,-967.49,0.00013972,2]
[335769628,1724483461487,-500.0,0.00013972,2]
[335769629,1724483461497,-500.0,0.00013972,2]
[335769630,1724483461506,-500.0,0.00013972,2]
[335769631,1724483461516,-500.0,0.00013972,2]
[335769632,1724483461526,-500.0,0.00013972,2]
[335769633,1724483461536,-755.36,0.00013972,2]
[335769634,1724483461546,-500.0,0.00013972,2]
[335769635,1724483461556,-9687.02,0.00013972,2]
[335769636,1724483461566,-2876.75,0.00013972,2]
[335769637,1724483461576,-500.0,0.00013972,2]
[335769638,1724483461586,-500.0,0.00013972,2]
[335769639,1724483461596,-1305.57,0.00013972,2]
[335769640,1724483461606,-500.0,0.00013972,2]
[335769641,1724483461616,-538.707119,0.00013972,2]
[335769642,1724483461626,-538.707119,0.00013972,2]
[335769643,1724483461635,-1977.39,0.00013972,2]
[335769644,1724483461645,-538.707119,0.00013972,2]
[335769645,1724483461655,-693.36,0.00013972,2]
[335769646,1724483461664,-18136.67,0.00013972,2]
[335769647,1724483461674,-538.707119,0.00013972,2]
[335769648,1724483461684,-538.707119,0.00013972,2]
[335769649,1724483461693,-538.707119,0.00013972,2]
[335769650,1724483461703,-500.0,0.00013972,2]
[335769651,1724483461712,-5154.78,0.00013972,2]
[335769652,1724483461721,-11923.4,0.00013972,2]
[335769653,1724483461730,-1004.45,0.00013972,2]
[335769654,1724483461740,-1103.19,0.00013972,2]
[335769655,1724483461750,-5798.0,0.00013972,2]
[335769656,1724483461759,-582.34985091,0.00013972,2]
[335769657,1724483461769,-500.0,0.00013972,2]
[335769658,1724483461778,-232.57120854,0.00013972,2]
[335769659,1724483461788,-1040.786388,0.00013972,2]
[335769660,1724483461797,-500.0,0.00013972,2]
[335769661,1724483461807,-1040.786388,0.00013972,2]
[335769662,1724483461816,-500.0,0.00013972,2]
[335769663,1724483461826,-500.0,0.00013972,2]
[335769664,1724483461836,-1040.786388,0.00013972,2]
[335769665,1724483461850,-561.11,0.00013972,2]
[335769666,1724483461860,-745.68,0.00013972,2]
[335769667,1724483461869,-1040.786388,0.00013972,2]
[335769668,1724483461879,-1040.786388,0.00013972,2]
[335769669,1724483461890,-1040.786388,0.00013972,2]
[335769670,1724483461900,-500.0,0.00013972,2]
[335769671,1724483461910,-1033.27,0.00013972,2]
[335769672,1724483461920,-1936.06,0.00013972,2]
[335769673,1724483461932,-500.0,0.00013972,2]
[335769674,1724483461941,-1095.67,0.00013972,2]
[335769675,1724483461952,-500.0,0.00013972,2]
[335769676,1724483461962,-3816.09,0.00013972,2]
[335769677,1724483461972,-500.0,0.00013972,2]
[335769678,1724483461982,-500.0,0.00013972,2]
[335769679,1724483461992,-1354.1,0.00013972,2]
[335769680,1724483462002,-500.0,0.00013972,2]
[335769681,1724483462011,-1521.04,0.00013972,2]
[335769682,1724483462021,-500.0,0.00013972,2]
[335769683,1724483462032,-500.0,0.00013972,2]
[335769684,1724483462042,-500.0,0.00013972,2]
[335769685,1724483462052,-204.026499,0.00013972,2]
[335769686,1724483462061,-204.026499,0.00013972,2]
[335769687,1724483462070,-204.026499,0.00013972,2]
[335769688,1724483462080,-849.78,0.00013972,2]
[335769689,1724483462089,-10332.39,0.00013972,2]
[335769690,1724483462099,-501.32545482,0.00013972,2]
[335769691,1724483462110,-500.0,0.00013972,2]